bitfinex/quotes_ETHUSD_20240713
["timestamp","ask_amount","ask_price","bid_price","bid_amount"]
[1720914298732,3.04763252,3189.3,3189.2,0.4127355]
[1720914299281,1.08664683,3189.3,3189.2,0.4127355]
[1720914299973,1.63649388,3189.3,3189.2,0.4127355]
[1720914300145,3.59704109,3189.3,3189.2,0.4127355]
[1720914301281,1.63649388,3189.3,3189.2,0.4127355]
[1720914301873,1.08649388,3189.3,3189.2,0.4127355]
[1720914302375,2.4888,3190.2,3189.2,0.4127355]
[1720914302575,1.08636227,3189.3,3189.2,0.4127355]
[1720914302938,1.08636227,3189.7,3189.2,0.4127355]
[1720914303555,1.08636227,3189.7,3189.3,2.2578]
[1720914303763,1.08636227,3189.8,3189.3,2.2578]
[1720914304047,1.08636227,3189.7,3189.4,0.26705355]
[1720914304259,5.28341471,3190.3,3189.4,0.67978905]
[1720914304260,1.08636227,3189.6,3189.4,0.67978905]
[1720914304467,1.08636227,3189.5,3189.4,0.67978905]
[1720914305543,2.4888,3190.5,3189.4,0.67978905]
[1720914305855,1.95547886,3190.2,3189.4,0.4127355]
[1720914306036,1.95547886,3190.0,3189.4,0.4127355]
[1720914306241,3.04171789,3189.9,3189.4,0.4127355]
[1720914306462,1.63623903,3189.8,3189.4,0.4127355]
[1720914306717,3.04171789,3189.7,3189.4,0.4127355]
[1720914306979,6.43968968,3189.6,3189.4,0.4127355]
[1720914307276,3.04171789,3189.5,3189.4,0.4127355]
[1720914307576,3.59171789,3189.5,3189.4,0.4127355]
[1720914308082,4.63623903,3189.5,3189.4,0.4127355]
[1720914308663,4.63657473,3189.5,3189.4,0.4127355]
[1720914308856,5.57729582,3189.5,3189.4,0.4127355]
[1720914309172,7.85919432,3189.5,3189.4,0.4127355]
[1720914309476,5.57735819,3189.5,3189.4,0.4127355]
[1720914309689,7.85906862,3189.5,3189.4,0.4127355]
[1720914310041,5.57735819,3189.5,3189.4,0.4127355]
[1720914311188,8.06615819,3189.5,3189.4,0.4127355]
[1720914311351,10.76157712,3189.5,3189.4,0.4127355]
[1720914311543,8.06615819,3189.5,3189.4,0.4127355]
[1720914311885,10.76420492,3189.5,3189.4,0.4127355]
[1720914313147,8.06628711,3189.5,3189.4,0.4127355]
[1720914313457,10.76471316,3189.5,3189.4,0.4127355]
[1720914314317,8.06628711,3189.5,3189.4,0.4127355]
[1720914314469,8.85931372,3189.5,3189.4,0.4127355]
[1720914314862,3.37051372,3189.5,3189.4,0.4127355]
[1720914315095,1.08658095,3189.5,3189.4,0.4127355]
[1720914315304,3.04338397,3189.5,3189.4,0.4127355]
[1720914315677,1.08658095,3189.5,3189.4,0.4127355]
[1720914316385,1.63658095,3189.5,3189.4,0.4127355]
[1720914318180,1.63651346,3189.5,3189.4,0.4127355]
[1720914319484,3.59550813,3189.5,3189.4,0.4127355]
[1720914321515,1.6364149,3189.5,3189.4,0.4127355]
[1720914322021,1.63644015,3189.5,3189.4,0.4127355]
[1720914324478,0.55,3189.5,3189.4,0.4127355]
[1720914324922,1.08643455,3189.5,3189.4,0.4127355]
[1720914327803,3.89485943,3189.5,3189.4,0.4127355]
[1720914328009,4.5355475,3189.5,3189.4,0.4127355]
[1720914330233,4.53558113,3189.5,3189.4,0.4127355]
[1720914331038,4.53557842,3189.5,3189.4,0.4127355]
[1720914331570,7.53557842,3189.5,3188.8,7.38721673]
[1720914331869,2.28973087,3189.0,3188.8,7.38721673]
[1720914332007,1.08649035,3188.9,3188.8,7.38721673]
[1720914332208,1.63649035,3188.9,3188.8,7.38721673]
[1720914332447,1.63649035,3188.9,3187.9,2.2625]
[1720914332448,2.2584,3188.8,3187.9,2.2625]
[1720914332622,1.96275003,3188.6,3187.9,3.22747167]
[1720914332810,1.08649035,3188.5,3187.9,3.22747167]
[1720914333347,3.04924038,3188.5,3187.8,7.38721673]
[1720914333515,1.63649035,3188.4,3187.8,7.38721673]
[1720914333716,1.08649035,3188.3,3187.8,7.38721673]
[1720914334136,1.08687917,3188.2,3187.8,7.38721673]
[1720914334329,1.08687917,3188.1,3187.8,7.38721673]
[1720914334527,1.08687917,3188.0,3187.8,7.38721673]
[1720914334713,1.08687917,3187.9,3187.8,8.36384639]
[1720914336927,1.96259715,3188.8,3187.8,8.36384639]
[1720914337122,0.55,3188.7,3187.8,8.36384639]
[1720914337331,1.96145169,3188.8,3187.8,8.36384639]
[1720914337515,1.63681132,3188.7,3187.8,8.36384639]
[1720914337716,1.08681132,3188.6,3187.8,8.36384639]
[1720914337937,1.08681132,3188.6,3187.9,0.83638464]
[1720914339420,1.08681132,3188.6,3187.8,7.38721673]
[1720914340454,2.51216159,3188.7,3187.8,7.38721673]
[1720914340631,1.08682963,3188.6,3187.8,7.38721673]
[1720914343749,1.08682877,3188.5,3187.8,7.38721673]
[1720914343948,1.08682893,3188.4,3187.8,7.38721673]
[1720914344128,1.08682893,3188.3,3187.8,8.36384639]
[1720914344316,1.08682893,3188.2,3187.8,8.36384639]
[1720914344521,1.08682893,3188.1,3187.8,8.36384639]
[1720914344837,1.08682893,3188.0,3187.8,8.36384639]
[1720914345022,1.08682893,3188.6,3187.8,8.36384639]
[1720914345354,1.08682893,3188.6,3188.0,2.2625]
[1720914345564,1.08682893,3188.8,3188.1,2.2625]
[1720914345723,1.08682893,3188.7,3188.1,2.2625]
[1720914345923,4.54868718,3189.6,3188.1,2.2625]
[1720914345924,1.08682893,3188.6,3188.1,2.2625]
[1720914346127,1.08682893,3188.5,3188.2,0.52625]
[1720914346328,1.9631033,3189.5,3188.7,2.2625]
[1720914346547,1.08654319,3189.4,3188.7,2.2625]
[1720914346733,1.08654319,3189.3,3188.7,2.2625]
[1720914347056,1.08650716,3189.2,3188.7,2.2625]
[1720914347249,1.08650716,3189.1,3188.7,3.22747167]
[1720914347452,1.08655851,3189.0,3188.7,2.2625]
[1720914347650,1.08655851,3188.9,3188.7,2.2625]
[1720914347841,1.08655851,3188.8,3188.6,7.38721673]
[1720914348043,1.08655823,3188.7,3188.6,7.38721673]
[1720914350171,0.32779461,3189.7,3188.6,9.75971673]
[1720914350172,1.96556445,3189.6,3188.6,9.75971673]
[1720914350465,1.08642791,3189.5,3188.7,1.03868229]
[1720914350764,1.08642791,3189.4,3188.7,0.97597167]
[1720914350923,3.05225438,3189.5,3188.7,0.97597167]
[1720914351123,1.08642791,3189.4,3188.7,0.97597167]
[1720914351628,2.2704,3189.3,3188.6,7.38721673]
[1720914351842,1.96582647,3189.0,3188.6,7.38721673]
[1720914352039,1.96582647,3188.8,3188.6,7.38721673]
[1720914352328,3.05225438,3188.7,3187.9,7.38721673]
[1720914352675,1.63642791,3188.6,3187.9,7.38721673]
[1720914352829,1.08642791,3188.5,3187.9,7.38721673]
[1720914353259,0.55,3188.6,3187.9,7.38721673]
[1720914353563,1.08682866,3188.5,3187.9,7.38721673]
[1720914353726,1.08682866,3188.4,3187.9,7.38721673]
[1720914353923,1.08682866,3188.3,3187.9,7.38721673]
[1720914354136,1.08682866,3188.2,3187.9,7.38721673]
[1720914354340,1.08682866,3188.5,3187.9,7.38721673]
[1720914354623,1.96728106,3188.3,3187.9,7.38721673]
[1720914354847,1.08682866,3188.2,3187.9,7.38721673]
[1720914355868,1.08682866,3188.3,3187.9,7.38721673]
[1720914356029,0.55,3188.2,3187.9,7.38721673]
[1720914356229,1.08682866,3188.1,3187.9,7.38721673]
[1720914356478,0.55,3188.2,3187.9,7.38721673]
[1720914356682,1.08692076,3188.0,3187.9,7.38721673]
[1720914357238,0.55,3188.2,3187.5,7.38721673]
[1720914357239,1.08692076,3188.1,3187.5,7.38721673]
[1720914358270,1.08692076,3188.1,3187.6,2.09495956]
[1720914358936,1.08692076,3188.4,3187.6,2.09495956]
[1720914359132,1.08692076,3188.3,3187.6,2.09495956]
[1720914359331,1.08692076,3188.2,3187.6,2.09495956]
[1720914359535,1.08692076,3188.1,3187.7,0.94821763]
[1720914359780,0.55,3188.5,3187.7,0.94821763]
[1720914360229,1.08688128,3188.4,3187.7,0.94821763]
[1720914360430,1.08688128,3188.3,3187.7,0.94821763]
[1720914360633,1.08688128,3188.2,3187.7,0.94821763]
[1720914360864,1.08688128,3188.4,3187.9,2.3725]
[1720914361074,1.08688128,3188.3,3187.9,2.3725]
[1720914361372,1.08688128,3188.2,3187.9,2.3725]
[1720914361537,1.08688128,3188.1,3187.9,2.3725]
[1720914361733,1.08688128,3188.0,3187.9,2.3725]
[1720914362169,1.08684152,3188.0,3187.9,2.3725]
[1720914362948,1.08683187,3188.0,3187.9,2.3725]
[1720914365367,1.0867995,3188.0,3187.9,2.3725]
[1720914367188,1.0867995,3188.0,3187.6,0.1165799]
[1720914367359,1.0867995,3187.9,3187.7,0.24890799]
[1720914367556,1.0867995,3187.8,3187.6,0.1165799]
[1720914367759,1.0867995,3188.4,3187.6,0.1165799]
[1720914368479,1.08688994,3188.3,3187.6,0.1165799]
[1720914368682,1.08688994,3188.2,3187.6,0.1165799]
[1720914368983,1.08688994,3188.1,3188.0,7.42]
[1720914369693,1.08688994,3188.1,3188.0,9.7925]
[1720914371423,1.08688994,3188.1,3188.0,7.42]
[1720914371712,1.96196744,3188.5,3188.0,7.42]
[1720914371907,1.6368833,3188.4,3188.0,7.42]
[1720914372088,1.0868833,3188.3,3188.0,7.42]
[1720914372283,1.0868833,3188.2,3188.0,7.42]
[1720914372487,1.0868833,3188.1,3188.0,8.162]
[1720914373412,1.0868833,3188.1,3188.0,7.42]
[1720914374919,1.08684551,3188.1,3188.0,7.42]
[1720914378087,1.08678766,3188.1,3188.0,7.42]
[1720914378544,1.96583667,3188.4,3188.0,7.42]
[1720914378833,1.08680619,3188.3,3188.0,7.42]
[1720914378989,1.08680619,3188.2,3188.0,7.42]
[1720914379188,3.0,3188.8,3188.0,7.42]
[1720914379189,1.08680619,3188.3,3188.0,7.42]
[1720914379417,1.08680619,3188.2,3188.0,7.42]
[1720914379632,1.08680619,3188.1,3188.0,7.42]
[1720914379813,1.08680619,3188.1,3188.0,8.162]
[1720914380656,1.08680619,3188.1,3188.0,12.4097]
[1720914381200,5.4812,3189.3,3188.0,12.4097]
[1720914381510,1.96538883,3188.8,3188.0,12.4097]
[1720914381688,1.08667336,3188.7,3188.0,12.4097]
[1720914381894,1.08667336,3188.7,3188.1,1.24097]
[1720914382455,1.08667336,3188.7,3188.6,8.63834]
[1720914382601,1.08667336,3189.2,3188.7,2.19522]
[1720914382801,1.08667336,3189.1,3188.8,2.3387]
[1720914383109,1.08667336,3189.0,3188.9,0.23387]
[1720914384323,2.4812,3190.1,3188.9,0.23387]
[1720914384501,1.96494051,3189.7,3188.8,2.3387]
[1720914384703,0.55,3190.0,3188.8,2.3387]
[1720914384896,1.96521686,3189.7,3188.8,2.3387]
[1720914385120,1.08641622,3189.6,3188.8,2.3387]
[1720914385606,1.08641622,3189.5,3188.8,2.3387]
[1720914385811,1.08641622,3189.4,3188.8,2.3387]
[1720914386060,1.08641622,3189.3,3188.8,2.3387]
[1720914386255,1.08641622,3189.2,3188.8,2.3387]
[1720914386549,0.55,3190.0,3188.4,2.3387]
[1720914386550,1.08641622,3189.1,3188.4,2.3387]
[1720914386760,1.08641622,3189.0,3188.4,2.3387]
[1720914387069,1.08641622,3188.9,3188.4,3.06347]
[1720914387364,2.4812,3189.5,3188.4,5.25891]
[1720914387365,1.08641622,3188.8,3188.4,5.25891]
[1720914387515,1.08651943,3188.8,3188.4,5.25891]
[1720914387841,1.08653845,3188.7,3188.4,5.25891]
[1720914388041,2.4812,3189.5,3188.4,5.25891]
[1720914388338,1.08650974,3189.4,3188.5,3.021241]
[1720914388652,1.08650974,3189.3,3188.5,3.021241]
[1720914388837,1.08650974,3189.5,3188.5,3.021241]
[1720914389243,1.08650974,3189.5,3188.4,3.06347]
[1720914389441,3.0312,3189.4,3188.4,2.3387]
[1720914389746,1.08650974,3189.3,3188.4,2.3387]
[1720914389958,0.55,3189.2,3188.4,2.3387]
[1720914390167,1.08650974,3189.1,3188.4,2.3387]
[1720914390513,0.55,3189.2,3188.4,2.3387]
[1720914390715,1.08653544,3189.1,3188.4,2.3387]
[1720914390952,1.08653544,3189.0,3188.4,3.283028]
[1720914391151,1.08653544,3188.9,3188.4,3.283028]
[1720914391457,1.08653544,3188.8,3188.4,3.283028]
[1720914391757,1.08653544,3188.7,3188.4,3.283028]
[1720914392062,0.55,3189.3,3188.3,3.0]
[1720914392359,0.55,3189.3,3188.2,1.909]
[1720914392360,1.08655495,3189.2,3188.2,4.909]
[1720914392532,1.63655495,3189.1,3188.2,4.909]
[1720914392858,1.08655495,3189.0,3188.2,4.909]
[1720914393042,1.08655495,3188.9,3188.2,5.853343]
[1720914393245,1.08655495,3188.8,3188.2,5.853343]
[1720914393419,1.08655495,3189.0,3188.2,5.853343]
[1720914393754,1.08655495,3188.9,3188.2,5.853343]
[1720914393958,1.08655697,3188.8,3188.2,5.853343]
[1720914394125,1.08655697,3188.7,3188.2,5.853343]
[1720914394457,0.55,3189.1,3188.2,5.853343]
[1720914394756,1.08655558,3189.0,3188.2,5.853343]
[1720914394923,1.08655558,3188.9,3188.2,5.853343]
[1720914395118,1.08655558,3189.2,3188.2,4.909]
[1720914395326,0.55,3189.1,3188.2,4.909]
[1720914395520,1.08655558,3189.0,3188.2,4.909]
[1720914395853,0.55,3188.9,3188.2,4.909]
[1720914396033,1.08655558,3188.8,3188.2,4.909]
[1720914397164,0.55,3188.9,3188.2,4.909]
[1720914397362,1.08658218,3188.7,3188.2,4.909]
[1720914397531,1.08658218,3188.6,3188.2,4.909]
[1720914397745,0.55,3188.9,3188.2,5.63377]
[1720914398043,1.08658246,3188.8,3188.2,5.63377]
[1720914398249,1.08658246,3188.7,3188.2,5.63377]
[1720914398435,1.08658246,3188.6,3188.2,5.63377]
[1720914398634,0.55,3188.9,3188.2,5.63377]
[1720914398851,1.08657357,3188.8,3188.3,0.797247]
[1720914399038,1.08657357,3188.7,3188.3,0.797247]
[1720914399245,1.08657357,3188.6,3188.4,4.53415]
[1720914399555,5.39255786,3190.3,3188.3,0.797247]
[1720914399556,4.44825319,3189.8,3188.6,2.1953]
[1720914399724,1.0864653,3189.7,3188.6,2.1953]
[1720914399927,1.0864653,3189.6,3188.6,2.1953]
[1720914400143,1.0864653,3189.5,3188.6,2.1953]
[1720914400450,1.08643547,3189.4,3188.7,0.9443]
[1720914400638,1.08641895,3189.3,3188.7,0.9443]
[1720914400829,1.08641895,3189.2,3188.7,0.9443]
[1720914401155,1.08641895,3189.1,3188.7,0.9443]
[1720914401335,1.08641895,3189.0,3188.7,0.9443]
[1720914401535,1.08641895,3188.9,3188.8,0.31396]
[1720914401742,2.4812,3189.8,3188.8,0.31396]
[1720914401929,1.08640265,3189.7,3188.6,2.1953]
[1720914402264,1.63640265,3189.6,3188.6,2.1953]
[1720914402425,1.08640265,3189.5,3188.6,2.1953]
[1720914403658,1.08638994,3189.4,3188.6,2.1953]
[1720914403845,1.08638994,3189.3,3188.6,2.1953]
[1720914404158,1.08638994,3189.2,3188.7,0.9443]
[1720914404367,0.55,3189.6,3188.7,0.9443]
[1720914404368,1.08638994,3189.5,3188.7,0.9443]
[1720914404544,1.08638994,3189.5,3188.5,9.44308]
[1720914405424,1.08638994,3189.5,3188.6,2.19531]
[1720914406965,1.08639529,3189.4,3188.6,2.19531]
[1720914407159,1.08639529,3189.3,3188.6,2.19531]
[1720914407359,1.08639529,3189.2,3188.6,3.139611]
[1720914407564,1.08639529,3189.5,3188.6,3.139611]
[1720914407864,1.08639529,3189.4,3188.6,3.139611]
[1720914408177,1.08639529,3189.3,3188.6,3.139611]
[1720914408327,1.08639079,3189.2,3188.6,3.139611]
[1720914408531,0.55,3189.6,3188.7,3.0]
[1720914408532,1.08639079,3189.1,3188.7,3.0]
[1720914408733,1.08639079,3189.5,3188.7,3.0]
[1720914408925,1.25002987,3189.5,3188.7,3.0]
[1720914409131,1.08639079,3189.4,3188.7,3.0]
[1720914409381,1.08639079,3189.4,3188.5,4.2477]
[1720914409564,2.4447,3189.3,3188.5,4.2477]
[1720914409739,1.08639079,3189.2,3188.5,4.2477]
[1720914409943,0.35310908,3189.1,3188.5,4.2477]
[1720914410145,1.08639079,3189.0,3188.5,4.2477]
[1720914410348,1.0865644,3188.9,3188.5,4.2477]
[1720914410566,1.0865644,3188.8,3188.1,4.1716]
[1720914410769,0.35310908,3189.1,3188.1,4.1716]
[1720914410977,1.63662722,3189.0,3188.1,4.1716]
[1720914411161,1.28560085,3188.9,3188.2,3.0]
[1720914411486,4.08132722,3188.8,3188.1,1.909]
[1720914411772,4.08132722,3188.8,3187.8,2.2626]
[1720914411773,1.08662722,3188.7,3187.8,2.2626]
[1720914411940,1.08662722,3188.6,3187.8,2.2626]
[1720914412268,1.08662722,3188.5,3187.8,2.2626]
[1720914412571,1.08662722,3188.4,3187.8,2.91101799]
[1720914412758,1.08662722,3188.7,3187.8,2.91101799]
[1720914412935,1.08662722,3188.7,3187.8,2.2626]
[1720914413358,2.9947,3188.8,3187.8,5.2626]
[1720914413680,1.08679921,3188.7,3187.8,5.2626]
[1720914413844,1.08679921,3188.6,3187.7,1.909]
[1720914414029,1.08679921,3188.6,3187.6,0.1165799]
[1720914414030,1.63679921,3188.5,3187.6,0.1165799]
[1720914414230,2.4447,3188.3,3187.6,0.1165799]
[1720914414482,1.08679921,3188.2,3187.6,0.1165799]
[1720914416574,2.4447,3188.3,3187.6,0.1165799]
[1720914416748,1.08685718,3188.2,3187.6,0.1165799]
[1720914417977,0.32802127,3188.1,3187.6,0.1165799]
[1720914418180,1.08685718,3188.0,3187.6,0.35449789]
[1720914419952,1.08690456,3187.9,3187.6,0.35449789]
[1720914420261,1.08690456,3187.8,3187.6,0.35449789]
[1720914420460,1.08690456,3187.7,3187.6,0.35449789]
[1720914420705,1.08690456,3187.7,3187.6,0.1165799]
[1720914422392,0.32802127,3188.1,3187.6,0.1165799]
[1720914422544,1.63699501,3188.0,3187.6,0.1165799]
[1720914422752,0.55,3188.0,3187.6,0.1165799]
[1720914423058,1.08703802,3187.9,3187.6,0.1165799]
[1720914423257,1.08703802,3187.8,3187.6,0.1165799]
[1720914423455,1.08703802,3187.7,3187.6,0.1165799]
[1720914425507,1.08707311,3187.7,3187.6,0.1165799]
[1720914425676,4.08178428,3187.7,3187.6,0.1165799]
[1720914426010,4.48996271,3187.7,3187.6,0.1165799]
[1720914428116,2.04526271,3187.7,3187.6,0.1165799]
[1720914428301,1.08708428,3187.7,3187.6,0.1165799]
[1720914428819,1.08706766,3187.7,3187.6,0.1165799]
[1720914428983,1.63706766,3187.7,3187.6,0.1165799]
[1720914430409,4.08176766,3187.7,3187.6,0.1165799]
[1720914431997,4.08184447,3187.7,3187.6,0.1165799]
[1720914432205,4.49002892,3187.7,3187.6,0.1165799]
[1720914433117,4.81813548,3187.7,3187.6,0.1165799]
[1720914434883,7.81813548,3187.7,3187.6,0.1165799]
[1720914435107,6.73099101,3187.7,3187.6,0.1165799]
[1720914435308,9.77471379,3187.7,3187.6,0.1165799]
[1720914435709,9.77400525,3187.7,3187.6,0.1165799]
[1720914436023,7.81838281,3187.7,3187.6,0.1165799]
[1720914437115,9.77299668,3187.7,3187.6,0.1165799]
[1720914438288,6.73099101,3187.7,3186.0,7.42]
[1720914438505,2.3104,3187.5,3186.0,7.42]
[1720914438687,7.21951554,3187.6,3186.0,7.42]
[1720914438688,2.3104,3187.3,3186.0,7.42]
[1720914438903,3.39781644,3187.2,3186.0,7.42]
[1720914439215,1.08741644,3187.1,3186.0,7.42]
[1720914439635,0.55,3187.0,3186.0,7.42]
[1720914439840,1.25115808,3186.9,3186.0,7.42]
[1720914440027,3.94781644,3186.8,3186.0,7.42]
[1720914440215,1.08741644,3186.7,3186.0,7.42]
[1720914440416,0.55,3186.6,3186.0,7.42]
[1720914440740,1.08741644,3186.5,3186.0,7.42]
[1720914440942,0.55,3186.4,3186.0,7.42]
[1720914441144,1.08741644,3186.3,3186.0,7.42]
[1720914441310,0.55,3186.2,3186.0,7.42]
[1720914441506,1.08760643,3186.1,3186.0,7.42]
[1720914441708,1.63760659,3186.1,3186.0,7.42]
[1720914442342,4.11176725,3186.1,3185.1,2.3454]
[1720914442556,1.63760659,3186.0,3185.1,2.3454]
[1720914442721,1.08760659,3185.9,3185.1,2.3454]
[1720914442909,0.55,3185.8,3185.1,2.3454]
[1720914443111,1.08760659,3185.7,3185.1,2.3454]
[1720914444526,1.08760659,3185.7,3185.0,7.42]
[1720914444527,0.55,3185.6,3185.0,7.42]
[1720914444842,1.08782202,3185.5,3185.0,7.42]
[1720914445042,0.55,3185.6,3185.0,7.42]
[1720914445043,0.55,3185.6,3185.0,8.40701]
[1720914445246,1.08781425,3185.5,3185.0,8.40701]
[1720914445440,0.55,3185.6,3185.0,8.40701]
[1720914446026,2.4076,3186.4,3185.1,2.4501]
[1720914446350,1.6377297,3186.3,3185.1,4.3591]
[1720914446546,1.0877297,3186.2,3185.2,1.276611]
[1720914446843,1.6377297,3186.1,3185.2,1.276611]
[1720914447027,1.0877297,3186.0,3185.2,1.276611]
[1720914447213,1.0877297,3185.9,3185.2,1.276611]
[1720914447416,0.55,3186.1,3185.2,1.276611]
[1720914447632,1.08765668,3186.0,3185.2,1.276611]
[1720914447949,1.08765668,3185.9,3185.3,0.5635711]
[1720914448153,0.55,3186.1,3185.3,0.5635711]
[1720914448476,0.32804849,3185.8,3185.3,0.5635711]
[1720914448751,0.32804849,3185.8,3185.4,2.4501]
[1720914449577,0.32804849,3185.8,3185.4,9.8701]
[1720914449717,0.32804849,3185.8,3185.5,1.04336711]
[1720914450923,0.32804849,3185.8,3185.6,2.484]
[1720914460965,0.32804849,3185.8,3185.6,5.484]
[1720914462434,0.32804849,3185.8,3185.7,2.19731]
[1720914466134,0.32804849,3185.8,3185.6,5.484]
[1720914467471,1.08748254,3185.7,3185.6,3.0]
[1720914467679,1.08749598,3185.7,3185.6,3.0]
[1720914468170,1.08749598,3185.7,3185.4,3.0]
[1720914468392,1.08749598,3185.6,3185.3,12.28]
[1720914468547,1.08759469,3185.5,3185.3,12.28]
[1720914468740,1.08759469,3185.4,3185.3,12.28]
[1720914468943,1.08759469,3185.7,3185.3,15.28]
[1720914471046,1.08758166,3185.6,3185.3,15.28]
[1720914471266,1.08758166,3185.5,3185.3,17.24611]
[1720914471481,0.32804849,3185.8,3185.3,17.24611]
[1720914471684,1.08755162,3185.7,3185.3,17.24611]
[1720914471985,1.08755162,3185.6,3185.3,17.24611]
[1720914472187,1.08755162,3185.5,3185.4,1.971821]
[1720914472895,0.32804849,3185.8,3185.5,2.4721]
[1720914473181,1.08748494,3185.7,3185.6,1.909]
[1720914474172,0.32804849,3185.8,3185.6,1.909]
[1720914474493,1.08745918,3185.7,3185.6,1.909]
[1720914474788,0.32804849,3185.8,3185.7,0.796]
[1720914475151,1.41550839,3185.8,3185.7,0.796]
[1720914475649,2.70633936,3187.3,3185.7,0.796]
[1720914475650,1.96378366,3186.8,3185.7,2.99331]
[1720914475890,1.08737568,3186.7,3186.4,4.56681]
[1720914476094,1.08737568,3186.6,3186.4,2.37]
[1720914476259,1.08737568,3186.5,3186.4,2.37]
[1720914476587,1.08737568,3186.5,3186.4,3.166]
[1720914476793,1.08737568,3186.5,3186.4,7.002296]
[1720914477297,1.08718597,3186.5,3186.4,7.002296]
[1720914477675,1.96576824,3187.5,3186.4,7.002296]
[1720914477883,1.08717741,3187.4,3186.9,0.796]
[1720914478195,1.08717741,3187.3,3186.9,0.796]
[1720914478485,1.08717741,3187.2,3186.9,0.796]
[1720914478690,1.08717741,3187.2,3186.5,3.0]
[1720914478691,1.08717741,3187.1,3186.5,3.0]
[1720914478857,1.08717741,3187.0,3186.6,0.6206296]
[1720914479058,1.08717741,3186.9,3186.6,0.6206296]
[1720914479258,1.08717741,3186.8,3186.6,0.6206296]
[1720914479664,1.08717981,3186.7,3186.6,0.6206296]
[1720914479823,2.3432,3187.6,3186.7,4.10661]
[1720914479978,1.0871087,3187.5,3186.8,0.47272396]
[1720914480178,1.0871087,3187.4,3186.8,0.47272396]
[1720914480514,2.3432,3187.6,3186.8,0.47272396]
[1720914480822,1.08710586,3187.5,3186.8,0.47272396]
[1720914482611,1.08710586,3187.5,3186.6,0.6206296]
[1720914483120,1.08716066,3187.4,3186.6,0.6206296]
[1720914483327,4.30803131,3187.6,3186.6,0.6206296]
[1720914483551,4.30803131,3187.6,3186.5,3.0]
[1720914483552,1.63715987,3187.5,3186.5,3.0]
[1720914483723,1.08715987,3187.4,3186.4,5.37]
[1720914485751,2.3042,3187.3,3186.4,3.0]
[1720914486055,1.08715987,3187.2,3186.3,1.91]
[1720914486215,1.08719007,3187.1,3186.3,1.91]
[1720914486535,1.08719007,3187.0,3186.4,0.491]
[1720914486745,1.08719007,3186.9,3186.4,0.491]
[1720914486959,2.3042,3187.3,3186.4,0.491]
[1720914487262,1.0871689,3187.2,3186.4,0.491]
[1720914487412,1.0871689,3187.1,3186.4,0.491]
[1720914487610,1.0871689,3187.2,3186.4,0.491]
[1720914488110,1.0871689,3187.2,3186.5,0.2401]
[1720914489410,2.3042,3187.3,3186.5,0.2401]
[1720914489609,1.08723261,3187.2,3186.5,0.2401]
[1720914489823,1.08723261,3187.1,3186.5,0.2401]
[1720914490029,1.08723261,3187.0,3186.5,0.2401]
[1720914490231,1.08723261,3187.2,3186.5,0.2401]
[1720914490440,2.3042,3187.3,3186.5,0.2401]
[1720914490441,1.08723261,3187.1,3186.5,0.2401]
[1720914490648,1.08723261,3187.2,3186.4,3.491]
[1720914490961,1.63723261,3187.1,3185.9,1.91]
[1720914491159,1.08723261,3187.0,3185.9,1.91]
[1720914491456,1.08723261,3187.0,3186.1,0.41868]
[1720914491829,2.3042,3186.9,3185.9,1.91]
[1720914492045,1.63723261,3186.8,3186.0,3.0]
[1720914492232,1.08723261,3186.7,3185.9,1.91]
[1720914492619,1.08741161,3186.6,3185.9,1.91]
[1720914492812,1.08741161,3186.5,3185.7,3.0]
[1720914493040,1.08741161,3186.4,3185.8,0.52768]
[1720914493243,2.3042,3186.5,3185.8,0.52768]
[1720914493463,1.08741161,3186.4,3185.8,0.52768]
[1720914493662,1.08741161,3186.4,3185.5,9.33]
[1720914495169,1.08741161,3186.4,3185.6,3.0]
[1720914495317,1.08741161,3186.4,3185.5,9.33]
[1720914495730,4.2721205,3186.5,3185.5,9.33]
[1720914495935,1.637553,3186.4,3185.5,9.33]
[1720914496166,0.55,3186.4,3185.5,9.33]
[1720914496466,1.08755146,3186.3,3185.5,9.33]
[1720914496620,1.08755146,3186.2,3185.5,9.33]
[1720914496816,1.08755146,3186.3,3185.5,9.33]
[1720914497059,1.08755146,3186.2,3185.6,0.933]
[1720914497358,1.08755146,3186.1,3185.6,0.933]
[1720914497654,1.08755146,3186.0,3185.5,9.33]
[1720914497858,1.08755146,3185.9,3185.5,9.33]
[1720914498057,1.08755146,3186.3,3185.5,9.33]
[1720914498264,1.08755146,3186.2,3185.5,7.42]
[1720914498567,3.34105146,3186.1,3185.5,7.42]
[1720914498722,1.08755146,3186.0,3185.5,7.42]
[1720914498919,1.08762004,3185.9,3185.5,7.42]
[1720914499122,1.08762095,3185.8,3185.5,7.42]
[1720914499366,2.2535,3186.1,3185.5,7.42]
[1720914499367,1.08762095,3185.7,3185.5,7.42]
[1720914499565,1.08762095,3186.0,3185.5,7.42]
[1720914499867,1.08763336,3185.9,3185.5,7.42]
[1720914500053,1.08763336,3185.8,3185.5,7.42]
[1720914500561,1.08763336,3185.9,3185.5,7.42]
[1720914500864,0.55,3185.8,3185.5,7.42]
[1720914501162,1.08763336,3185.7,3185.5,7.42]
[1720914502225,2.32553248,3186.2,3185.5,9.884]
[1720914502226,1.08768631,3185.6,3185.5,9.884]
[1720914502427,1.08768631,3185.6,3185.5,7.42]
[1720914502650,1.08768631,3185.6,3185.2,10.42]
[1720914502961,1.08768631,3185.5,3185.2,10.42]
[1720914503151,1.08768631,3186.1,3185.2,10.42]
[1720914503550,0.55,3186.0,3185.2,10.42]
[1720914503720,1.08768631,3185.9,3185.2,11.8994]
[1720914504428,2.4955,3185.8,3185.2,11.8994]
[1720914504640,1.08768631,3185.7,3185.5,0.797]
[1720914505526,2.4955,3185.8,3185.5,0.797]
[1720914505737,1.08773903,3185.7,3185.5,0.797]
[1720914508963,1.08773524,3185.6,3185.2,7.42]
[1720914509140,1.08773524,3185.5,3185.2,7.42]
[1720914509340,1.08780732,3185.4,3185.2,7.42]
[1720914509640,2.4955,3185.8,3185.2,7.42]
[1720914509641,1.0877995,3185.3,3185.2,7.42]
[1720914509962,1.08783021,3185.7,3185.2,7.42]
[1720914510167,1.63783021,3185.6,3185.2,7.42]